Cogmind - Beta 15 @@@ ROGUE MODE // 2025.05.25 @ 17:16:59 Player: naththebg Result: Destroyed by H-66 Slayer with Gauss Rifle Performance ------------- Evolutions (4) 2000 Regions Visited (13) 2600 Robots Destroyed (148) 740 Value Destroyed (5012) 5012 Prototype IDs (19) 380 Alien Tech Used (0) 0 Bonus (641) 641 TOTAL SCORE: 11373 Bonus ------- High Alert Combat Kills 135 Follower Combat Kills 206 Met Data Miner 300 Cogmind --------- Core Integrity 0/850 Matter 211/300 Energy 99/100 System Corruption 7% Temperature Cool (0) Movement Core (50) Location -6/Factory Parts ------- > --- POWER (2) -------- (None) > --- PROPULSION (4) --- (None) > --- UTILITY (6) ------ (None) > --- WEAPON (3) ------- Power Maul > --- INVENTORY (5) ---- Advanced Heat Sink High-capacity Matter Pod (200) Kinecellerator Improved Utility Shielding High-powered Tractor Beam Peak State ------------ > --- POWER ------------ Hybrid Deuterium Engine > --- PROPULSION ------- Medium Treads Medium Treads Heavy Treads > --- UTILITY ---------- High-capacity Storage Unit Improved Sensor Array Advanced Sensor Array Improved Signal Interpreter Improved Medium Armor Plating Medium Reflective Plating > --- WEAPON ----------- Gatling Laser Gatling Laser Gatling Laser > --- INVENTORY -------- Hybrid Deuterium Engine Hybrid Deuterium Engine Antimatter Reactor Medium Treads Improved Heat Sink Advanced Heat Sink Cooling System Coolant Injector High-capacity Matter Pod Kinecellerator Weapon Cycler Weapon Cycler Improved Utility Shielding Improved Utility Shielding High-powered Tractor Beam Gatling Laser Gauss Rifle Heavy Rocket Launcher Heavy Missile Launcher Improved Datajack [Rating: 63] Favorites ----------- Power Hybrid Deuterium Engine Engine Hybrid Deuterium Engine Power Core Light Nuclear Core Reactor Antimatter Reactor Propulsion Medium Treads Treads Medium Treads Leg Carbon-fiber Leg Wheel Compact Wheel Utility High-capacity Storage Unit Device Shield Generator Storage High-capacity Storage Unit Processor Improved Signal Interpreter Protection Improved Utility Shielding Weapon Gatling Laser Energy Gun Gatling Laser Ballistic Gun Assault Rifle Ballistic Cannon Assault Cannon Launcher Heavy Rocket Launcher Impact Weapon Power Maul Slashing Weapon Greatsword Special Melee Weapon Improved Datajack Build | -11 -10 -10 -10 -9 -8 -7 -7 -7 -7 -7 -7 -6 -6 ------- Run | Yrd Mat Min Exi Min Mat Fac Was Fac Low Low Dat Pro Fac Slots Evolved 8 | . . . . . 4 2 . . . . . . 2 Power 1 | . . . . . . . . . . . . . 1 Propulsion 2 | . . . . . 1 1 . . . . . . . Utility 4 | . . . . . 2 1 . . . . . . 1 Weapon 1 | . . . . . 1 . . . . . . . . Parts Attached 82 | 6 4 1 . . 29 6 6 13 . . 1 4 12 Power 9 | 1 . . . . 4 . 2 . . . . . 2 Engine 7 | 1 . . . . 3 . 1 . . . . . 2 Core 1 | . . . . . 1 . . . . . . . . Reactor 1 | . . . . . . . 1 . . . . . . Propulsion 18 | 2 . . . . 10 1 2 . . . . . 3 Treads 9 | 2 . . . . 4 1 2 . . . . . . Leg 7 | . . . . . 6 . . . . . . . 1 Wheel 2 | . . . . . . . . . . . . . 2 Hover . | . . . . . . . . . . . . . . Flight . | . . . . . . . . . . . . . . Utility 29 | 1 3 . . . 6 4 1 5 . . . 3 6 Device 18 | . 2 . . . 6 1 1 2 . . . 1 5 Storage 4 | 1 1 . . . . 1 . 1 . . . . . Processor 1 | . . . . . . . . 1 . . . . . Hackware . | . . . . . . . . . . . . . . Protection 6 | . . . . . . 2 . 1 . . . 2 1 Artifact . | . . . . . . . . . . . . . . Weapon 26 | 2 1 1 . . 9 1 1 8 . . 1 1 1 Energy Gun 13 | . . . . . 7 . 1 4 . . . 1 . Energy Cannon . | . . . . . . . . . . . . . . Ballistic Gun 5 | 2 1 1 . . . . . 1 . . . . . Ballistic Cannon 3 | . . . . . 2 1 . . . . . . . Launcher 2 | . . . . . . . . 2 . . . . . Special Weapon . | . . . . . . . . . . . . . . Impact Weapon 1 | . . . . . . . . . . . . . 1 Slashing Weapon 1 | . . . . . . . . 1 . . . . . Piercing Weapon . | . . . . . . . . . . . . . . Special Melee Weapon 1 | . . . . . . . . . . . 1 . . Unidentified Prototypes 4 | . . . . . 2 . . 1 . . . . 1 Parts Lost 37 | . . . . . 13 . 6 . . . . 1 17 Power 3 | . . . . . 1 . 1 . . . . . 1 Propulsion 8 | . . . . . 3 . . . . . . . 5 Utility 11 | . . . . . 3 . 2 . . . . 1 5 Weapon 15 | . . . . . 6 . 3 . . . . . 6 Highest Loss Streak 7 | . . . . . 7 . 6 . . . . 1 7 To Critical Strikes . | . . . . . . . . . . . . . . Average Backups 16 | 2 9 13 14 14 12 15 18 19 19 19 18 19 18 Power 2 | . 1 1 1 1 . 3 3 3 3 3 3 3 3 Propulsion 2 | 2 4 4 4 4 3 2 3 3 1 1 1 1 . Utility 8 | . 1 4 5 5 5 6 8 9 9 10 10 10 10 Weapon 3 | . 2 3 4 4 1 3 2 2 4 4 4 4 3 Tool/Special . | . . . . . . . . . . . . . . Unused Backups 25 | . . . . . 5 . 4 6 . . . 1 9 Power 4 | . . . . . . . 1 . . . . . 3 Propulsion 7 | . . . . . 4 . 2 1 . . . . . Utility 12 | . . . . . . . 1 5 . . . 1 5 Weapon 2 | . . . . . 1 . . . . . . . 1 Tool/Special . | . . . . . . . . . . . . . . Average Slot Usage (%) 87 | . 98 100 100 100 91 99 75 77 88 92 77 91 79 Engine 8 | . 14 14 14 14 7 7 5 7 7 7 7 7 9 Treads 18 | . 28 28 28 28 10 30 19 15 19 23 23 23 13 Leg 2 | . . . . . 13 . . . . . . . . Device 14 | . 12 14 14 14 24 15 11 13 15 15 15 12 10 Storage 8 | . 14 14 14 14 9 7 7 7 7 7 7 7 5 Processor 4 | . . . . . . . . 6 7 7 7 7 5 Protection 6 | . . . . . . 14 11 5 7 7 7 9 13 Energy Gun 15 | . . . . . 18 15 11 16 22 23 7 22 16 Ballistic Gun 5 | . 28 28 28 28 4 . . 1 . . . . . Peak Build Rating 63 | 6 10 13 13 13 38 45 60 59 59 55 55 58 63 Average Rating 43 | 4 8 12 13 13 29 44 48 56 56 55 47 55 52 On Entrance 32 | . 6 10 13 13 13 38 45 35 59 55 55 55 58 Naked Turns 21 | . . . . . . . . . . . . . 21 Heaviest Build 86 | 13 30 32 32 32 43 77 86 70 70 64 64 76 86 Greatest Support 140 | 40 40 40 40 40 84 112 140 140 140 126 126 126 126 Greatest Overweight (x) 21 | . . . . . 1 . . . . . . . 21 Average Overweight (x) . | . . . . . . . . . . . . . . Largest Inventory Capacity 20 | 8 15 15 15 15 15 20 20 20 20 20 20 20 20 Average Capacity 18 | 7 13 15 15 15 15 18 20 20 20 20 20 20 19 Most Carried 20 | 6 11 14 14 14 15 19 20 20 20 19 19 20 20 Average Carried 16 | 3 9 13 14 14 12 16 19 19 19 19 18 19 18 Final Capacity 20 | 8 15 15 15 15 15 20 20 20 20 20 20 20 5 Final Carried 20 | 6 11 14 14 14 15 19 17 20 19 19 19 20 5 Class Distribution -------------------- 56% | Tank 25% | Mutant 7% | Gunner 4% | Scavenger-Gunner Dominant Class ---------------- Mutant | -10/Materials Mutant | -10/Mines Mutant | -10/Exiles Mutant | -9/Mines Gunner | -8/Materials Tank | -7/Factory Tank | -7/Waste Tank | -7/Factory Tank | -7/Lower Caves Tank | -7/Lower Caves Mutant | -7/Data Miner Tank | -6/Proximity Caves Tank | -6/Factory Resources | -11 -10 -10 -10 -9 -8 -7 -7 -7 -7 -7 -7 -6 -6 ----------- Run | Yrd Mat Min Exi Min Mat Fac Was Fac Low Low Dat Pro Fac Matter Collected 2914 | 193 213 202 . 6 816 6 184 412 114 21 . 349 398 Remotely 77 | . . . . . 77 . . . . . . . . Salvage Created 5530 | . 284 65 . . 1871 . . 584 166 71 . 838 1651 Parts 222 | . 17 5 . . 97 . . 28 9 6 . 17 43 Haulers Intercepted 10 | . 1 . . . 3 . . 2 . . . . 4 Recyclers Shooed 13 | . . . . . 1 . . 1 . . . . 11 Parts Field Recycled . | . . . . . . . . . . . . . . Retrieved Matter . | . . . . . . . . . . . . . . Parts Self-Destructed 23 | . . . . . . . . . 5 6 . 12 . Prevented . | . . . . . . . . . . . . . . Kills | -11 -10 -10 -10 -9 -8 -7 -7 -7 -7 -7 -7 -6 -6 ------- Run | Yrd Mat Min Exi Min Mat Fac Was Fac Low Low Dat Pro Fac Combat Hostiles Destroyed 101 | . 4 3 . . 39 . . 8 7 3 . 15 22 Guns 67 | . 4 3 . . 32 . . 6 2 3 . 6 11 Cannons 3 | . . . . . 3 . . . . . . . . AOE 26 | . . . . . 4 . . . 5 . . 9 8 Classes Destroyed 17 | . 3 1 . . 6 . . 2 1 . . 2 2 Worker 8 | . . . . . 1 . . 1 . . . . 6 Builder 5 | . . . . . . . . 1 . . . . 4 Tunneler 1 | . . . . . . . . . . . . . 1 Hauler 10 | . 1 . . . 3 . . 2 . . . . 4 Recycler 5 | . . . . . 1 . . 1 . . . . 3 Mechanic 2 | . . . . . . . . . . . . 1 1 Operator 3 | . . . . . 1 . . 1 . . . . 1 Drone 1 | . . . . . . . . . . . . 1 . Watcher 11 | . 2 . . . 3 . . 3 . . . . 3 Swarmer 20 | . . 2 . . 10 . . . 4 3 . 1 . Grunt 57 | . 4 1 . . 24 . . 5 2 . . 11 10 Duelist 2 | . . . . . . . . . 1 . . 1 . Protector 1 | . . . . . . . . . . . . . 1 Sentry 7 | . . . . . 5 . . . . . . 1 1 Hunter 7 | . . . . . 1 . . . . . . . 6 Programmer 7 | . . . . . . . . 3 . . . . 4 Heavy 1 | . . . . . 1 . . . . . . . . Best Kill Streak 15 | . 2 2 . . 7 . . 3 6 3 . 6 15 Combat Bots Only 7 | . 2 2 . . 7 . . 2 6 3 . 6 5 Max Kills in Single Turn 6 | . 1 1 . . 2 . . 3 5 1 . 3 6 Gunslinging 1 | . . . . . 1 . . . . . . . . Exploded 5 | . . . . . 2 . . . 5 . . 3 2 Melee . | . . . . . . . . . . . . . . Uniques/NPCs Destroyed . | . . . . . . . . . . . . . . Combat | -11 -10 -10 -10 -9 -8 -7 -7 -7 -7 -7 -7 -6 -6 -------- Run | Yrd Mat Min Exi Min Mat Fac Was Fac Low Low Dat Pro Fac Hostile Shots Fired 582 | . 16 22 . 1 180 . 6 17 5 12 . 40 283 Missed 191 | . 6 10 . 1 44 . . 5 1 1 . 10 113 Hits 391 | . 10 12 . . 136 . 6 12 4 11 . 30 170 Melee 6 | . . . . . . . 6 . . . . . . Projectile 385 | . 10 12 . . 136 . . 12 4 11 . 30 170 Critical Strikes 18 | . . . . . 7 . 5 . . . . 2 4 Actively Blocked 2 | . . . . . . . . . . . . . 2 Damage Taken 5938 | . 132 98 . . 2069 . 230 140 46 125 . 465 2633 Core 1262 | . 10 . . . 309 . 18 11 . 11 . 51 852 Absorbed by Shields 250 | . . . . . . . . 50 17 48 . 135 . Reduced by Siege Mode 62 | . . . . . . . 6 12 7 3 . 30 4 Redirected to Shielding 192 | . . . . . . . . . 7 . . 21 164 Ignored by Resistances 279 | . . . . . . . 7 . . . . . 272 Core Remaining (%) 81 | 100 . . . 96 43 . . . . . . 87 . Volleys Fired 294 | . 18 7 . 1 109 6 8 27 5 4 . 23 86 Largest 3 | . 2 2 . 2 3 3 3 3 3 3 . 3 3 Hottest 240 | . 40 53 . 53 171 171 171 240 240 240 . 240 240 Shots Fired 725 | . 36 14 . 2 277 14 18 71 15 12 . 59 207 Gun 659 | . 36 14 . 2 251 10 13 69 13 12 . 49 190 Cannon 35 | . . . . . 26 4 5 . . . . . . Launcher 31 | . . . . . . . . 2 2 . . 10 17 Special . | . . . . . . . . . . . . . . Kinetic 193 | . 36 14 . 2 105 4 5 6 . . . . 21 Thermal 444 | . . . . . 119 6 13 63 13 12 . 49 169 Explosive 31 | . . . . . . . . 2 2 . . 10 17 Electromagnetic 57 | . . . . . 53 4 . . . . . . . Robot Hit Streak 23 | . 7 5 . 5 13 3 19 20 21 3 . 17 23 Robot Miss Streak 10 | . 2 3 . . 7 3 1 4 3 10 . 3 8 Penetration Max 1 | . . . . . . . . . . . . . 1 Secondary Targets 9 | . . 1 . . 6 . . . . 1 . 1 . Max Gunslinging Chain 1 | . . 1 . . 1 . . . . 1 . 1 . Shots Hit Robots 519 | . 22 9 . 2 178 6 16 55 8 7 1 49 166 Core Hits 436 | . 13 3 . 1 141 2 4 39 16 6 . 55 156 Critical Kills 1 | . . . . . 1 . . . . . . . . Critical Parts Destroyed . | . . . . . . . . . . . . . . Critical Strikes 7 | . . . . . 7 . . . . . . . . Burn 6 | . . . . . 6 . . . . . . . . Destroy 1 | . . . . . 1 . . . . . . . . Melee Attacks 3 | . . . . . . . . . . . 1 . 2 Impact 2 | . . . . . . . . . . . . . 2 Slashing . | . . . . . . . . . . . . . . Piercing . | . . . . . . . . . . . . . . Sneak Attacks 1 | . . . . . . . . . . . 1 . . Combat Hostiles . | . . . . . . . . . . . . . . Follow-up Attacks . | . . . . . . . . . . . . . . Damage Inflicted 15849 | . 277 191 . 32 3511 93 337 1607 454 100 . 2183 7064 Guns 10369 | . 277 182 . 32 2749 53 244 1490 130 100 . 1029 4083 Cannons 574 | . . . . . 441 40 93 . . . . . . Explosions 4841 | . . . . . 292 . . 114 324 . . 1154 2957 Melee . | . . . . . . . . . . . . . . Ramming 65 | . . 9 . . 29 . . 3 . . . . 24 Kinetic 2422 | . 277 182 . 32 1361 40 93 43 . . . . 394 Thermal 8262 | . . . . . 1392 22 244 1447 130 100 . 1029 3898 Explosive 4340 | . . . . . . . . 114 324 . . 1154 2748 Electromagnetic 760 | . . . . . 729 31 . . . . . . . Impact . | . . . . . . . . . . . . . . Slashing . | . . . . . . . . . . . . . . Piercing . | . . . . . . . . . . . . . . Highest Corruption 7 | . . . . . . . . 2 2 2 2 2 7 Average Corruption 2 | . . . . . . . . 2 2 2 2 2 2 Corruption Purged . | . . . . . . . . . . . . . . Corruption Blocked . | . . . . . . . . . . . . . . Effects 61 | . . . . . . . . 12 8 9 5 12 15 Message Errors 11 | . . . . . . . . 2 1 2 3 2 1 Matter Fused 14 | . . . . . . . . 2 1 3 . 3 5 Heat Flow Errors 6 | . . . . . . . . 2 1 1 1 1 . Energy Discharges 8 | . . . . . . . . 2 1 1 . 1 3 Parts Rejected 1 | . . . . . . . . . . . . . 1 Parts Fused 2 | . . . . . . . . 1 . 1 . . . Data Loss (minor) 13 | . . . . . . . . 2 3 1 . 3 4 Data Loss (major) 4 | . . . . . . . . 1 . . 1 1 1 Alerts 2 | . . . . . . . . . 1 . . 1 . Overload Shots . | . . . . . . . . . . . . . . Overflow Damage 172 | . . . . . 21 . . 49 . . . 41 61 Projectiles . | . . . . . . . . . . . . . . Explosions 172 | . . . . . 21 . . 49 . . . 41 61 Melee . | . . . . . . . . . . . . . . Knockbacks 13 | . . . . . 12 1 . . . . . . . Impact . | . . . . . . . . . . . . . . Kinetic 10 | . . . . . 9 1 . . . . . . . Secondary 3 | . . . . . 3 . . . . . . . . Self-Inflicted Damage 100 | . . . . . 83 . . . . . . 3 14 Shots 4 | . . . . . 2 . . . . . . 1 1 Rammed 8 | . . 3 . . . . . 1 . . . . 4 Targets Rammed 13 | . . 3 . . 5 . . 1 . . . . 4 Kicked 5 | . . . . . 5 . . . . . . . . Crushed . | . . . . . . . . . . . . . . Highest Temperature 495 | . . . . . 251 162 117 294 263 495 155 342 431 Average Temperature 113 | . . . . . 59 74 38 125 105 219 85 134 134 Received Heat Transfer 1169 | . 72 . . . 585 . . 18 12 . . 191 291 Effects 5 | . . . . . 3 . . . . 1 . . 1 Energy Bleed 1 | . . . . . . . . . . . . . 1 Interference 3 | . . . . . 3 . . . . . . . . Damage (minor) 1 | . . . . . . . . . . 1 . . . Siege Activations 12 | . . . . . . . 1 4 1 1 . 3 2 Total Turns 172 | . . . . . . . 15 53 28 10 . 56 10 Longest Duration 35 | . . . . . . . 15 17 28 10 . 35 9 Martial Activations . | . . . . . . . . . . . . . . Shielding Activations . | . . . . . . . . . . . . . . Robots Disrupted . | . . . . . . . . . . . . . . Combat Hostiles . | . . . . . . . . . . . . . . Robots Corrupted . | . . . . . . . . . . . . . . Combat Hostiles . | . . . . . . . . . . . . . . Parts Fried 3 | . . . . . 3 . . . . . . . . Impact Corruptions . | . . . . . . . . . . . . . . Robots Melted 6 | . . . . . . . . 2 . . . . 4 Combat Hostiles 5 | . . . . . . . . 2 . . . . 3 Parts Melted 33 | . . . . . 3 . . 8 . . . 2 20 Heat Transferred 17761 | . . . . . 2937 25 399 3100 300 225 . 2325 8450 Parts Sabotaged . | . . . . . . . . . . . . . . Parts Stolen . | . . . . . . . . . . . . . . Parts Stripped . | . . . . . . . . . . . . . . Power Chain Reactions 3 | . . . . . 3 . . . . . . . . Alert | -11 -10 -10 -10 -9 -8 -7 -7 -7 -7 -7 -7 -6 -6 ------- Run | Yrd Mat Min Exi Min Mat Fac Was Fac Low Low Dat Pro Fac Maximum Alert Level 2 | . . . . . 2 1 . 1 . . . . 2 Low Security (%) 58 | 100 100 100 . 100 40 49 100 59 . . . . 24 Level 1 33 | . . . . . 32 50 . 40 . . . . 63 Level 2 8 | . . . . . 26 . . . . . . . 11 Level 3 . | . . . . . . . . . . . . . . Level 4 . | . . . . . . . . . . . . . . Level 5 . | . . . . . . . . . . . . . . High Security . | . . . . . . . . . . . . . . Max Security . | . . . . . . . . . . . . . . Peak Influence 591 | . 64 144 . 61 591 264 46 305 . . . . 568 Initial 264 | . . . . . . 264 46 . . . . . 228 Average 155 | . 22 42 . 28 259 199 6 106 . . . . 273 Influence Increases 3784 | . 138 194 . 61 1180 . . 544 175 70 . 320 1102 Destroy 0b10 Robot/C 2140 | . 80 140 . 40 820 . . 160 140 60 . 280 420 Destroy 0b10 Robot/NC 245 | . 15 . . . 45 . . 45 . . . 20 120 Destroy Leader 470 | . 26 20 . 10 182 . . 60 20 10 . 20 122 Allied During Kill 52 | . . 34 . 11 7 . . . . . . . . Successful Hack 19 | . . . . . 5 . . 14 . . . . . Disable Machine 180 | . . . . . 45 . . 45 . . . . 90 Anti-Garrison Action 200 | . . . . . . . . 200 . . . . . Destroy Structure 148 | . 2 . . . 16 . . 20 . . . . 110 Advance Influence 150 | . . . . . . . . . . . . . 150 Lose Combat Pursuer 180 | . 15 . . . 60 . . . 15 . . . 90 Influence Decreases 3220 | . 138 108 86 61 597 449 134 267 398 124 . 195 663 Entered New Map 655 | . . . 86 . . 319 88 . 104 11 . . 47 Time Decay 2258 | . 138 108 . 61 470 130 46 267 294 113 . 185 446 Lost Part 307 | . . . . . 127 . . . . . . 10 170 Squads Dispatched 27 | . 1 1 . . 9 1 . 5 . . . 1 9 Investigation 5 | . . . . . 2 . . 1 . . . . 2 Extermination 5 | . . . . . . . . 3 . . . . 2 Reinforcement 12 | . 1 . . . 5 1 . 1 . . . . 4 Assault 2 | . . 1 . . . . . . . . . 1 . Garrison 3 | . . . . . 2 . . . . . . . 1 Intercept . | . . . . . . . . . . . . . . Searches Triggered . | . . . . . . . . . . . . . . Data Miner Redirects 2 | . . . . . . . . . . . . . 2 Construction Impeded 2 | . . . . . 2 . . . . . . . . Haulers Reinforced 3 | . . . . . . . . 1 . . . . 2 Active Scanning Responses . | . . . . . . . . . . . . . . Cargo Convoy Interrupts 1 | . . . . . . . . . . . . . 1 Stealth | -11 -10 -10 -10 -9 -8 -7 -7 -7 -7 -7 -7 -6 -6 --------- Run | Yrd Mat Min Exi Min Mat Fac Was Fac Low Low Dat Pro Fac Distress Signals 4 | . . . . . . . . . . . . . 4 Communications Jammed . | . . . . . . . . . . . . . . Distress Signals . | . . . . . . . . . . . . . . Times Spotted 156 | . 8 5 . 2 49 1 1 13 3 3 . 13 58 Peak Tracking Total 17 | . 2 3 . 1 11 1 1 2 7 3 . 4 17 Tactical Retreats 8 | . 1 . . . 3 . . . 1 . . . 3 Traps | -11 -10 -10 -10 -9 -8 -7 -7 -7 -7 -7 -7 -6 -6 ------- Run | Yrd Mat Min Exi Min Mat Fac Was Fac Low Low Dat Pro Fac Traps Triggered 5 | . . . . . 1 1 . . . . . . 3 Indirectly . | . . . . . . . . . . . . . . Trap Hack Attempts . | . . . . . . . . . . . . . . Triggered . | . . . . . . . . . . . . . . Disarmed . | . . . . . . . . . . . . . . Reprogrammed . | . . . . . . . . . . . . . . Reused . | . . . . . . . . . . . . . . Traps Extracted . | . . . . . . . . . . . . . . Installed . | . . . . . . . . . . . . . . Triggered . | . . . . . . . . . . . . . . Machines | -11 -10 -10 -10 -9 -8 -7 -7 -7 -7 -7 -7 -6 -6 ---------- Run | Yrd Mat Min Exi Min Mat Fac Was Fac Low Low Dat Pro Fac Machines Disabled 13 | . . . . . 3 . . 3 . . . 1 6 Max in Single Turn 3 | . . . . . 1 . . 2 . . . 1 3 Garrison Access 3 | . . . . . 1 1 . 1 . . . . . Machines Repaired . | . . . . . . . . . . . . . . Machines Dismantled . | . . . . . . . . . . . . . . Machines Sabotaged . | . . . . . . . . . . . . . . Overloaded Fab Kills . | . . . . . . . . . . . . . . Hacking | -11 -10 -10 -10 -9 -8 -7 -7 -7 -7 -7 -7 -6 -6 --------- Run | Yrd Mat Min Exi Min Mat Fac Was Fac Low Low Dat Pro Fac Machines Accessed 16 | . 1 . 1 . 6 2 . 2 . . 4 . . Terminals 6 | . 1 . . . 4 . . 1 . . . . . Fabricators . | . . . . . . . . . . . . . . Repair Stations . | . . . . . . . . . . . . . . Recycling Units 2 | . . . . . 1 1 . . . . . . . Scanalyzers . | . . . . . . . . . . . . . . Garrison Access 3 | . . . . . 1 1 . 1 . . . . . Total Hacks 58 | . 2 . 4 . 12 3 . 5 . . 32 . . Successful 46 | . 1 . 4 . 5 2 . 2 . . 32 . . Failed 12 | . 1 . . . 7 1 . 3 . . . . . Catastrophic 3 | . . . . . 1 . . 2 . . . . . Database Lockouts . | . . . . . . . . . . . . . . Manual 7 | . . . . . 6 . . 1 . . . . . Terminals 13 | . 2 . . . 9 . . 2 . . . . . Fabricators . | . . . . . . . . . . . . . . Repair Stations . | . . . . . . . . . . . . . . Recycling Units 3 | . . . . . 1 2 . . . . . . . Scanalyzers . | . . . . . . . . . . . . . . Garrison Access 6 | . . . . . 2 1 . 3 . . . . . Terminal Hacks 40 | . 1 . 4 . 2 . . 1 . . 32 . . Record 15 | . . . 4 . . . . . . . 11 . . Part Schematic 13 | . . . . . . . . . . . 13 . . Robot Schematic 5 | . . . . . . . . . . . 5 . . Prototype ID Bank 3 | . . . . . . . . . . . 3 . . Branch Access Points 1 | . 1 . . . . . . . . . . . . Terminal Index 1 | . . . . . . . . 1 . . . . . Alert Level 2 | . . . . . 2 . . . . . . . . Fabricator Hacks . | . . . . . . . . . . . . . . Repair Station Hacks . | . . . . . . . . . . . . . . Recycling Unit Hacks 2 | . . . . . 1 1 . . . . . . . Retrieve Components 2 | . . . . . 1 1 . . . . . . . Scanalyzer . | . . . . . . . . . . . . . . Garrison Access Hacks 2 | . . . . . 1 1 . . . . . . . Seal Access 2 | . . . . . 1 1 . . . . . . . Unauthorized Hacks 2 | . . . . . 1 . . 1 . . . . . Terminals 1 | . . . . . 1 . . . . . . . . Botnet 1 | . . . . . 1 . . . . . . . . Fabricators . | . . . . . . . . . . . . . . Repair Stations . | . . . . . . . . . . . . . . Recycling Units . | . . . . . . . . . . . . . . Scanalyzers . | . . . . . . . . . . . . . . Garrison Access 1 | . . . . . . . . 1 . . . . . Jam 1 | . . . . . . . . 1 . . . . . Data Cores Recovered 1 | . . . . . . . . 1 . . . . . Used . | . . . . . . . . . . . . . . Hacking Detections 8 | . 1 . . . 5 1 . 1 . . . . . Full Trace Events 1 | . . . . . 1 . . . . . . . . Feedback Events . | . . . . . . . . . . . . . . Feedback Blocked . | . . . . . . . . . . . . . . Robot Schematics Acquired 5 | . . . . . . . . . . . 5 . . Robots Built . | . . . . . . . . . . . . . . Authchips . | . . . . . . . . . . . . . . Time . | . . . . . . . . . . . . . . Total Robot Build Rating . | . . . . . . . . . . . . . . Part Schematics Acquired 13 | . . . . . . . . . . . 13 . . Parts Built . | . . . . . . . . . . . . . . Authchips . | . . . . . . . . . . . . . . Time . | . . . . . . . . . . . . . . Total Part Build Rating . | . . . . . . . . . . . . . . Parts Repaired . | . . . . . . . . . . . . . . Time . | . . . . . . . . . . . . . . Parts Recycled . | . . . . . . . . . . . . . . Recycled Matter . | . . . . . . . . . . . . . . Retrieved Matter . | . . . . . . . . . . . . . . Retrieved Components 4 | . . . . . 3 1 . . . . . . . Parts Scanalyzed . | . . . . . . . . . . . . . . Part Schematics Acquired . | . . . . . . . . . . . . . . Parts Damaged . | . . . . . . . . . . . . . . Bothacking | -11 -10 -10 -10 -9 -8 -7 -7 -7 -7 -7 -7 -6 -6 ------------ Run | Yrd Mat Min Exi Min Mat Fac Was Fac Low Low Dat Pro Fac Used RIF Installer . | . . . . . . . . . . . . . . Robots Hacked 1 | . . . . . . . . . . . 1 . . Non-combat . | . . . . . . . . . . . . . . Combat 1 | . . . . . . . . . . . 1 . . Robot Hacks Applied 1 | . . . . . . . . . . . 1 . . parse_system 1 | . . . . . . . . . . . 1 . . Relay Couplers Released . | . . . . . . . . . . . . . . Fabnet Peak Effective % . | . . . . . . . . . . . . . . Robots Rewired . | . . . . . . . . . . . . . . Allies Hacked . | . . . . . . . . . . . . . . Hacks Repelled . | . . . . . . . . . . . . . . Allies | -11 -10 -10 -10 -9 -8 -7 -7 -7 -7 -7 -7 -6 -6 -------- Run | Yrd Mat Min Exi Min Mat Fac Was Fac Low Low Dat Pro Fac Total Allies 4 | . . 4 . . . . . . . . . . . Largest Group 4 | . . 4 4 3 3 . . . . . . . . Highest-Rated Group 71 | . . 71 71 63 63 . . . . . . . . Highest-Rated Ally 31 | . . 31 31 31 31 . . . . . . . . Total Orders . | . . . . . . . . . . . . . . Ally Attacks 63 | . . 27 . 7 29 . . . . . . . . Total Damage 744 | . . 327 . 106 311 . . . . . . . . Kills 9 | . . 4 . 3 2 . . . . . . . . Allies Corrupted . | . . . . . . . . . . . . . . Allies Melted . | . . . . . . . . . . . . . . Intel | -11 -10 -10 -10 -9 -8 -7 -7 -7 -7 -7 -7 -6 -6 ------- Run | Yrd Mat Min Exi Min Mat Fac Was Fac Low Low Dat Pro Fac Active Infowar (turns) 4474 | . . . . . . . . 1589 582 521 161 991 630 Sensors 4474 | . . . . . . . . 1589 582 521 161 991 630 Robot Analysis Total . | . . . . . . . . . . . . . . Derelict Logs Recovered 5 | . . . . . . . . . 1 2 . 2 . Drone Launches . | . . . . . . . . . . . . . . Drone Recoveries . | . . . . . . . . . . . . . . Exploration | -11 -10 -10 -10 -9 -8 -7 -7 -7 -7 -7 -7 -6 -6 ------------- Run | Yrd Mat Min Exi Min Mat Fac Was Fac Low Low Dat Pro Fac Turns Passed 8724 | 96 390 503 272 141 1319 277 392 1675 649 583 161 1147 1119 Spaces Moved 4412 | 52 192 281 167 80 562 153 212 901 371 330 96 616 399 Core 69 | 1 . . . . . . . . . . . . 68 Treads 3957 | 51 192 281 167 80 218 153 212 901 371 330 96 616 289 Legs 346 | . . . . . 344 . . . . . . . 2 Wheels 40 | . . . . . . . . . . . . . 40 Hover . | . . . . . . . . . . . . . . Flight . | . . . . . . . . . . . . . . Fastest Speed 50 | 50 160 160 160 160 120 160 160 160 160 160 160 160 50 Average Speed 157 | 157 160 160 160 160 141 160 160 160 160 160 160 160 163 Slowest Speed 1100 | 160 160 160 160 160 240 160 160 160 160 160 160 160 1100 Overloaded Moves . | . . . . . . . . . . . . . . Propulsion Burnouts . | . . . . . . . . . . . . . . Robots Hopped . | . . . . . . . . . . . . . . Potential Cave-ins . | . . . . . . . . . . . . . . Cave-ins Triggered . | . . . . . . . . . . . . . . Exploration Rate (%) 44 | 5 34 63 50 29 54 4 80 19 62 59 75 73 18 Regions Visited 13 Branch Regions 7 Pre-discovered Areas 2 | . . . 1 . . . . . . . 1 . . Known Exits Taken 6 | . 1 . . . . . . 1 1 1 1 1 . Unknown Exits Taken 5 | 1 . 1 1 1 1 . . . . . . . . Scrap Searched 10 | . . 3 . . . . . . 2 2 . 3 . Spaces Dug 23 | . . . . . . . . . . . . 21 2 Terrain Destroyed 258 | . . . . . 16 . . 26 2 . . 62 152 Melee 2 | . . . . . . . . . . . . . 2 Projectile 2 | . . . . . 2 . . . . . . . . AOE 254 | . . . . . 14 . . 26 2 . . 62 150 Terrain Rammed . | . . . . . . . . . . . . . . Walls Destroyed . | . . . . . . . . . . . . . . Machines Disabled . | . . . . . . . . . . . . . . Actions | -11 -10 -10 -10 -9 -8 -7 -7 -7 -7 -7 -7 -6 -6 --------- Run | Yrd Mat Min Exi Min Mat Fac Was Fac Low Low Dat Pro Fac Total 5516 | 63 237 318 172 91 888 175 253 1068 410 374 104 712 651 Wait 571 | . 21 24 6 11 151 . 6 98 25 41 . 55 133 Move 4400 | 51 191 280 166 79 561 153 211 900 370 329 95 615 399 Hop . | . . . . . . . . . . . . . . Pick Up 66 | 6 3 3 . . 16 8 7 16 1 . . 3 3 Fast Attach 36 | 6 1 . . . 10 . 2 6 . . 3 . 8 Attach 30 | . . . . . 8 2 5 4 2 . 1 1 7 Detach 3 | . . . . . . . 2 . . . 1 . . Swap 56 | . 3 1 . . 15 4 3 4 6 . . 14 6 Drop 44 | . . . . . 13 2 9 12 1 . 3 1 3 Fire 294 | . 18 7 . 1 109 6 8 27 5 4 . 23 86 Melee 3 | . . . . . . . . . . . 1 . 2 Ram . | . . . . . . . . . . . . . . Kick 5 | . . . . . 5 . . . . . . . . Crush 8 | . . 3 . . . . . 1 . . . . 4 Escape Stasis . | . . . . . . . . . . . . . . Rewire . | . . . . . . . . . . . . . . Trap . | . . . . . . . . . . . . . . Miscellaneous . | . . . . . . . . . . . . . . Route ------- -11/Scrapyard -10/Materials (discovered 2 exits: *Min x2) -10/Mines (discovered 3 exits: [*Mat x2] / *Exi) -10/Exiles -9/Mines -8/Materials -7/Factory -7/Waste -7/Factory (discovered 3 exits: *Fac x2 / *Low) -7/Lower Caves -7/Lower Caves -7/Data Miner -6/Proximity Caves -6/Factory (discovered 2 exits: Fac / Ext) History --------- Turn | Location | Event 11 | -11/Scrapyard | Discovered new exit (range 16) 97 | -11/Scrapyard | Entered Materials 316 | -10/Materials | Build established: Mutant 448 | -10/Materials | Identified exit to Mines 487 | -10/Materials | Entered Mines 491 | -10/Mines | Assisted by bots powering up and referring to "LRC-V3" 595 | -10/Mines | Met a Derelict bent on vengeance 637 | -10/Mines | A weapon hastily lodged in a ceiling crevice suddenly fell to the ground 746 | -10/Mines | Discovered new exit (range 16) 823 | -10/Mines | Discovered new exit (range 7) 824 | -10/Mines | Met a Derelict testing a Signal Generator 977 | -10/Mines | Deemed a non-threat by the Exiles lab entrance 977 | -10/Mines | Discovered new exit (range 5) 990 | -10/Mines | Entered Exiles 990 | -10/Exiles | Accompanied by 4 allies 1030 | -10/Exiles | Met 8R-AWN 1058 | -10/Exiles | Met EX-HEX 1122 | -10/Exiles | Met EX-DEC 1130 | -10/Exiles | Learned location of Zion (-6) 1158 | -10/Exiles | Met EX-BIN 1243 | -10/Exiles | Discovered new exit (range 10) 1262 | -10/Exiles | Entered Mines 1262 | -9/Mines | Accompanied by 4 allies 1354 | -9/Mines | Discovered new exit (range 12) 1403 | -9/Mines | Entered Materials 1403 | -8/Materials | Accompanied by 3 allies 1403 | -8/Materials | Evolved 4 slots: Propulsion x1, Utility x2, Weapon x1 1577 | -8/Materials | Lost 3 parts (1n1u1w) 1745 | -8/Materials | Destroyed 7 combat bots 1747 | -8/Materials | Lost 7 parts (1p2n1u3w) 2193 | -8/Materials | Build established: Scavenger-Gunner 2282 | -8/Materials | Core integrity fell below 50% 2347 | -8/Materials | Garrison activated, responded to threat 2501 | -8/Materials | Build established: Gunner 2614 | -8/Materials | Discovered new exit (range 14) 2722 | -8/Materials | Entered Factory 2722 | -7/Factory | Evolved 2 slots: Propulsion x1, Utility x1 2999 | -7/Factory | Sucked down chute 2999 | -7/Factory | Entered Waste 2999 | -7/Waste | The area was eerily silent 3026 | -7/Waste | Build established: Tank 3279 | -7/Waste | A Compactor rumbled back to life 3297 | -7/Waste | Crushed by Compactor (1 part destroyed, 2 dropped) 3300 | -7/Waste | Crushed by Compactor (1 part destroyed, 1 dropped) 3303 | -7/Waste | Crushed by Compactor (1 part destroyed, 1 dropped) 3306 | -7/Waste | Crushed by Compactor (1 part destroyed, 1 dropped) 3309 | -7/Waste | Crushed by Compactor (1 part destroyed, 1 dropped) 3312 | -7/Waste | Spotted C-40 Crusher 3340 | -7/Waste | Lost 6 parts (1p2u3w) 3373 | -7/Waste | Discovered new exit (range 12) 3391 | -7/Waste | Entered Factory 3560 | -7/Factory | Build established: Mutant 3672 | -7/Factory | Discovered new exit (range 9) 3706 | -7/Factory | Identified exit to Factory 3996 | -7/Factory | Discovered exit to Factory (range 8) 4103 | -7/Factory | Build established: Tank 4251 | -7/Factory | Discovered new exit (range 7) 4273 | -7/Factory | Identified exit to Lower Caves 5066 | -7/Factory | Entered Lower Caves 5580 | -7/Lower Caves | Encountered a Warlord checkpoint 5697 | -7/Lower Caves | Discovered new exit (range 13) 5713 | -7/Lower Caves | Identified exit to Lower Caves 5715 | -7/Lower Caves | Entered another Lower Caves area 5842 | -7/Lower Caves | Learned Factory garrison access intel 6096 | -7/Lower Caves | Acquired the password to a Derelict Tinkerer's latest research 6249 | -7/Lower Caves | Discovered new exit (range 15) 6259 | -7/Lower Caves | Encountered a Warlord checkpoint 6274 | -7/Lower Caves | Learned 4 Factory zone layouts 6297 | -7/Lower Caves | Identified exit to Data Miner 6298 | -7/Lower Caves | Entered Data Miner 6298 | -7/Data Miner | Discovered new exit (range 6) 6330 | -7/Data Miner | Met Data Miner 6384 | -7/Data Miner | Learned location of Section 7 (-2) 6384 | -7/Data Miner | Acquired the access code to Warlord's prototype stash 6414 | -7/Data Miner | Received God Mode back door access code from Data Miner 6457 | -7/Data Miner | Identified exit to Proximity Caves 6459 | -7/Data Miner | Entered Proximity Caves 6488 | -6/Proximity Caves | Learned Factory stockpile data 6537 | -6/Proximity Caves | Spotter reported a threat 7079 | -6/Proximity Caves | Attracted the attention of an 0b10 outpost 7606 | -6/Proximity Caves | Entered Factory 7606 | -6/Factory | Evolved 2 slots: Power x1, Utility x1 7607 | -6/Factory | Identified exit to Extension 7608 | -6/Factory | Identified exit to Factory 7610 | -6/Factory | Loaded intel: 4 garrison access locations 8178 | -6/Factory | Incoming investigation squad redirected 8560 | -6/Factory | Lost 6 parts (2n2u2w) 8678 | -6/Factory | Cargo convoy interrupted 8681 | -6/Factory | Garrison activated, responded to threat 8685 | -6/Factory | Released all parts (6) 8692 | -6/Factory | Core integrity fell below 50% 8696 | -6/Factory | Incoming assault squad redirected 8715 | -6/Factory | Lost 7 parts (1n3u3w) 8722 | -6/Factory | Core integrity fell below 20% 8725 | -6/Factory | Destroyed by H-66 Slayer with Gauss Rifle Last Messages --------------- 08720_ W-25 Informer sends out distress signal. 08721_ R-10 Processor inserts Lgt. Angular Momentum Engine into recycling unit. 08721_ K-01 Serf cleans the Matter Pump. 08722_ C-30 ARC bursts open, deploying its payload. 08722_ H-66 Slayer unfolds itself. 08722_ Penetrated by Slug. 08722_ Slug penetrates H-66 Slayer. 08722_ Matter Pump disabled. 08722_ Slug penetrates Wall. 08722_ Penetrated by Slug. 08722_ Slug penetrates Wall. 08725_ R-10 Processor destroyed. 08725_ Chain reaction triggered in Lgt. Nuclear Core. 08725_ S-27 Virus destroyed. 08725_ Matter Pump disabled. 08725_ K-01 Serf collects debris. 08725_ Penetrated by Slug. Map ----- +----------------------------------------------------+ | % " ###+###??????????????????????????????????? | | # "??????????????????????????????????????????? | | + #??????????????????????????????????????????? | | # % #??????????????????????????????????????????? | | ?# #??????????????????????????????????????????? | | # #??????????????????????????????????????????? | | # [ #??????????????????????????????????????????? | | # ####???????????????????????????????????????? | | ##??????????????????????????????????????? | | #?#????????????????????????????????????? | | # # # #????????????????????????????????????? | | ## # ###/###??????????????????????????????? | | # # ##?????????????????????????????? | | "# ????????????????????????????? | | #??????????????????????????????? | | !% #??????????????????????????????? | | % " #??????????????????????????????? | | " #??????????????????????????????? | | " #??????????????????????????????? | | " #??????????????????????????????? | | #??????????????????????????????? | | #??????????????????????????????? | | #??????????????????????????????? | | #??????????????????????????????? | | ######+#####???????????????????? | | R @ #???????????????????? | | * #???????????????????? | | h %= #???????????????????? | | x ! #??Y"#??????????????? | | h ##" "## ?????????? | | h p ^ "%" ????????? | | " ????????? | | ######+###############*!! %"% """ """ ?????????? | | ???? # #*! """ """ ""???????????? | | ?? # ;*! """k"""??????????????? | | "" # ;% ??????????? | | "" !# ;p %"" """ """ ""???????????? | | "" # ;s %"" """ """??????????????? | | "" # # """ """ """ ?????????????? | | "" # / # ??????????? | | ! # /! # ??????????? | | "" # "###########+##?????????????? | | "" # ##??????????????????????????? | | ?" # "#??????????????????????????? | | ?" # ! ##??????????????????????????? | | ?" ##############???????????????????????????? | | ?? ?????????????????????????????????????????? | | ???? ?????????????????????????????????????????? | | ?????????????????????????????????????????????????? | | ?????????????????????????????????????????????????? | +----------------------------------------------------+ Best States ------------- Heat Dissipation 81 Coolant Potential 65 Energy Generation 23 Energy Capacity 965 Matter Stores 300 Matter Capacity 300 Sight Range 16 Robot Scan Range 16 Terrain Scan Density 10 Armor Coverage 600 Resistance: KI 20 Resistance: TH 15 Utility Shielding 66 Weapon Cycling 15 Evasion (%) 55 Recoil Reduction 4 Item Schematics ----------------- Combat Drone Bay | -7/Data Miner | Free Lgt. Regenerative Plating | -7/Data Miner | Free Cld. Cesium-ion Thruster | -7/Data Miner | Free Thermal Defense Suite | -7/Data Miner | Free Imp. Lightning Gun | -7/Data Miner | Free Thunder Leg | -7/Data Miner | Free Imp. Thermal Shield | -7/Data Miner | Free Hvy. Shock Bomb Launcher | -7/Data Miner | Free Plasma Rifle | -7/Data Miner | Free Adv. Trap Extractor | -7/Data Miner | Free KE Penetrator | -7/Data Miner | Free Lgt. Antimatter Reactor | -7/Data Miner | Free Quantum Capacitor | -7/Data Miner | Free Robot Schematics ------------------ R-10 Processor | -7/Data Miner | Free H-55 Commando | -7/Data Miner | Free G-50 Soldier | -7/Data Miner | Free S-27 Virus | -7/Data Miner | Free L-41 Fighter | -7/Data Miner | Free Fabricated ------------ Nothing Repaired ---------- Nothing Alien Tech Used ----------------- None Achievements -------------- None Challenges ------------ None Game ------ Seed CorruptionLinkedCloak Manual? 0 Play Time 01:04:29 Cumulative 249.4 hours Start 2025.05.25 @ 16:13:54 End 2025.05.25 @ 17:16:59 Sessions 1 Manual Loads 0 Difficulty Rogue Special Mode None Game No. 125 Rogue 125 Adventurer 0 Explorer 0 Win Type - Total 4 Types 4/0/0/0/0/0/0/0/0/0 Lore% 74 Gallery% 76 Achievement% 63 Wizard Run 0 Options --------- Layout 1 ASCII 0 Keyboard 0 Movement Mouse Keybinds 0 Fullscreen 1 Font 24/Smallcaps Map View 50x35 Zoom Use 0% Tactical HUD 1 Map Filters NONE Filters NONE Steam 1 RUN: b9fbfe7d-4cec-488a-977c-8c7cc583864e